[Event "Early-Titled-Tuesday-Blitz-June-18-2024"]
[Site "Chess.com"]
[Date "2024.06.18"]
[Round "8"]
[White "CFalcons8"]
[Black "Chessgod9oninsta"]
[Result "0-1"]
[WhiteElo "2444"]
[BlackElo "2739"]
[TimeControl "180+1"]
[EndTime "9:29:20 PDT"]
[Termination "Chessgod9oninsta won by resignation"]

1. e4 {[%clk 0:03:00.9]} 1... e5 {[%clk 0:02:56.7]} 2. Nf3 {[%clk 0:03:00.9]}
2... Nc6 {[%clk 0:02:57.4]} 3. Bb5 {[%clk 0:03:00]} 3... a6 {[%clk 0:02:57.1]}
4. Ba4 {[%clk 0:03:00.2]} 4... d6 {[%clk 0:02:55.5]} 5. c3 {[%clk 0:02:59.9]}
5... Bd7 {[%clk 0:02:54.5]} 6. O-O {[%clk 0:02:58.8]} 6... g6 {[%clk 0:02:54.7]}
7. d4 {[%clk 0:02:57.7]} 7... Bg7 {[%clk 0:02:55.4]} 8. h3 {[%clk 0:02:55.2]}
8... Nf6 {[%clk 0:02:54.4]} 9. Re1 {[%clk 0:02:48.9]} 9... O-O {[%clk
0:02:53.2]} 10. Nbd2 {[%clk 0:02:47.9]} 10... Re8 {[%clk 0:02:42.1]} 11. Bc2
{[%clk 0:02:43.3]} 11... b5 {[%clk 0:02:37.9]} 12. a4 {[%clk 0:02:41.6]} 12...
b4 {[%clk 0:02:33.6]} 13. Nc4 {[%clk 0:02:41.4]} 13... bxc3 {[%clk 0:02:31.5]}
14. bxc3 {[%clk 0:02:42.3]} 14... exd4 {[%clk 0:02:26.2]} 15. cxd4 {[%clk
0:02:43.2]} 15... d5 {[%clk 0:02:26.3]} 16. exd5 {[%clk 0:02:41.5]} 16... Nxd5
{[%clk 0:02:27.2]} 17. Rxe8+ {[%clk 0:02:40.5]} 17... Bxe8 {[%clk 0:02:27.4]}
18. Be3 {[%clk 0:02:38.2]} 18... Nc3 {[%clk 0:02:17.5]} 19. Qd3 {[%clk
0:02:20.2]} 19... Nxd4 {[%clk 0:02:07]} 20. Bxd4 {[%clk 0:01:43.2]} 20... Bxd4
{[%clk 0:02:05.8]} 21. Nxd4 {[%clk 0:01:40.9]} 21... Qxd4 {[%clk 0:02:05.7]} 22.
Re1 {[%clk 0:01:38.7]} 22... Qxd3 {[%clk 0:02:02.9]} 23. Bxd3 {[%clk 0:01:39.6]}
23... Bxa4 {[%clk 0:02:02.5]} 24. Re7 {[%clk 0:01:35]} 24... Nd5 {[%clk
0:01:56.1]} 25. Re5 {[%clk 0:01:29.9]} 25... Rd8 {[%clk 0:01:53.3]} 26. Na5
{[%clk 0:01:24.9]} 26... Bb5 {[%clk 0:01:43.3]} 27. Bxb5 {[%clk 0:01:11.7]}
27... axb5 {[%clk 0:01:44.2]} 28. Nc6 {[%clk 0:01:12]} 28... Rd6 {[%clk
0:01:43.1]} 29. Rxd5 {[%clk 0:01:12.2]} 29... Rxc6 {[%clk 0:01:43.7]} 30. Rxb5
{[%clk 0:01:12.7]} 30... Kg7 {[%clk 0:01:39.3]} 31. Rd5 {[%clk 0:01:12.2]} 31...
Rd6 {[%clk 0:01:38.3]} 32. Rc5 {[%clk 0:01:12]} 32... c6 {[%clk 0:01:38.7]} 33.
Kh2 {[%clk 0:01:12.3]} 33... Kf6 {[%clk 0:01:39.1]} 34. Kg3 {[%clk 0:01:12.2]}
34... Ke7 {[%clk 0:01:39.7]} 35. Kf3 {[%clk 0:01:10.3]} 35... Kd7 {[%clk
0:01:38.6]} 36. Ra5 {[%clk 0:01:10.9]} 36... Rd5 {[%clk 0:01:37.3]} 37. Ra7+
{[%clk 0:01:09.8]} 37... Ke6 {[%clk 0:01:37.9]} 38. Ke3 {[%clk 0:01:09.7]} 38...
Rd7 {[%clk 0:01:36.4]} 39. Ra6 {[%clk 0:01:07.2]} 39... Kd5 {[%clk 0:01:35.9]}
40. Kf4 {[%clk 0:01:05.9]} 40... c5 {[%clk 0:01:31.8]} 41. Ra8 {[%clk
0:01:05.4]} 41... c4 {[%clk 0:01:28.7]} 42. Rc8 {[%clk 0:01:05.2]} 42... h6
{[%clk 0:01:23.4]} 43. h4 {[%clk 0:01:04]} 43... Kd4 {[%clk 0:01:23]} 44. h5
{[%clk 0:01:03.7]} 44... gxh5 {[%clk 0:01:19.3]} 45. Kf5 {[%clk 0:01:00.1]}
45... c3 {[%clk 0:01:18.6]} 46. Kf6 {[%clk 0:00:59.7]} 46... Kd3 {[%clk
0:01:18]} 47. Kg7 {[%clk 0:00:59.6]} 47... c2 {[%clk 0:01:16]} 48. Kxh6 {[%clk
0:00:59.5]} 48... h4 {[%clk 0:01:16]} 49. Kg5 {[%clk 0:00:57.5]} 49... Rd5+
{[%clk 0:01:14.9]} 50. Kf6 {[%clk 0:00:54.5]} 50... Rd7 {[%clk 0:01:14.2]} 51.
Kg5 {[%clk 0:00:53.9]} 51... Kd2 {[%clk 0:01:10.9]} 52. Kxh4 {[%clk 0:00:53]}
52... c1=Q {[%clk 0:01:11.3]} 53. Rxc1 {[%clk 0:00:53.3]} 53... Kxc1 {[%clk
0:01:12.1]} 54. g4 {[%clk 0:00:53.3]} 54... Kd2 {[%clk 0:01:12.7]} 55. f4 {[%clk
0:00:54.2]} 55... Kd3 {[%clk 0:01:13.1]} 56. f5 {[%clk 0:00:55.1]} 56... Ke4
{[%clk 0:01:13.5]} 57. Kg5 {[%clk 0:00:55.4]} 57... Ke5 {[%clk 0:01:13.7]} 58.
Kh6 {[%clk 0:00:55.1]} 58... Kf6 {[%clk 0:01:13.1]} 59. Kh7 {[%clk 0:00:53.1]}
59... Rd8 {[%clk 0:01:13.3]} 60. g5+ {[%clk 0:00:51.4]} 60... Kxg5 {[%clk
0:01:12.9]} 0-1

[Event "Early-Titled-Tuesday-Blitz-June-18-2024"]
[Site "Chess.com"]
[Date "2024.06.18"]
[Round "8"]
[White "Xavier_mompel"]
[Black "NikitaShnadrygin"]
[Result "0-1"]
[WhiteElo "2437"]
[BlackElo "2736"]
[TimeControl "180+1"]
[EndTime "9:29:20 PDT"]
[Termination "NikitaShnadrygin won by resignation"]

1. e4 {[%clk 0:03:00.9]} 1... c5 {[%clk 0:03:00.2]} 2. Nf3 {[%clk 0:03:00.8]}
2... e6 {[%clk 0:03:00.7]} 3. d4 {[%clk 0:03:00]} 3... cxd4 {[%clk 0:03:01.6]}
4. Nxd4 {[%clk 0:03:00.6]} 4... Nf6 {[%clk 0:03:02.1]} 5. Nc3 {[%clk 0:03:00.2]}
5... Nc6 {[%clk 0:03:02.8]} 6. Ndb5 {[%clk 0:03:00.6]} 6... Bb4 {[%clk
0:03:02.6]} 7. a3 {[%clk 0:03:00.8]} 7... Bxc3+ {[%clk 0:03:03.2]} 8. Nxc3
{[%clk 0:03:01.6]} 8... d5 {[%clk 0:03:03.9]} 9. exd5 {[%clk 0:03:00.7]} 9...
exd5 {[%clk 0:03:04.8]} 10. Bd3 {[%clk 0:03:00]} 10... O-O {[%clk 0:03:05.5]}
11. O-O {[%clk 0:02:59.5]} 11... Bg4 {[%clk 0:03:06.2]} 12. f3 {[%clk
0:02:57.7]} 12... Bh5 {[%clk 0:03:06.7]} 13. Bg5 {[%clk 0:02:55.1]} 13... Qb6+
{[%clk 0:03:06.9]} 14. Kh1 {[%clk 0:02:53.3]} 14... Ne4 {[%clk 0:03:07]} 15.
Nxe4 {[%clk 0:02:36.2]} 15... dxe4 {[%clk 0:03:06.4]} 16. Bxe4 {[%clk
0:02:36.9]} 16... Qxb2 {[%clk 0:03:06.2]} 17. Qd3 {[%clk 0:02:28]} 17... Bg6
{[%clk 0:03:01.2]} 18. Bxg6 {[%clk 0:02:15]} 18... hxg6 {[%clk 0:03:01]} 19.
Rab1 {[%clk 0:02:14.1]} 19... Qe5 {[%clk 0:02:57.9]} 20. Qb5 {[%clk 0:02:09.2]}
20... Qxb5 {[%clk 0:02:55.1]} 21. Rxb5 {[%clk 0:02:10.1]} 21... b6 {[%clk
0:02:55.6]} 22. Rd5 {[%clk 0:02:01.3]} 22... Rac8 {[%clk 0:02:53.5]} 23. Rfd1
{[%clk 0:01:56.3]} 23... f6 {[%clk 0:02:50.2]} 24. Bf4 {[%clk 0:01:50.8]} 24...
Rfe8 {[%clk 0:02:44.1]} 25. h4 {[%clk 0:01:35.5]} 25... Kf7 {[%clk 0:02:44.2]}
26. Rd7+ {[%clk 0:01:25.4]} 26... Re7 {[%clk 0:02:44.5]} 27. Rxe7+ {[%clk
0:01:13.4]} 27... Kxe7 {[%clk 0:02:44.6]} 28. Re1+ {[%clk 0:01:13.8]} 28... Kf7
{[%clk 0:02:44.7]} 29. Rd1 {[%clk 0:01:13.9]} 29... Rd8 {[%clk 0:02:45.2]} 30.
Rxd8 {[%clk 0:01:13.1]} 30... Nxd8 {[%clk 0:02:45.6]} 31. c4 {[%clk 0:01:08.6]}
31... Ke6 {[%clk 0:02:39.1]} 32. Kg1 {[%clk 0:01:07.6]} 32... Nc6 {[%clk
0:02:26.8]} 33. Kf2 {[%clk 0:01:05]} 33... Na5 {[%clk 0:02:22]} 34. Bb8 {[%clk
0:00:49.5]} 34... a6 {[%clk 0:02:21.9]} 35. Bc7 {[%clk 0:00:30.4]} 35... Nxc4
{[%clk 0:02:19.7]} 36. Ke2 {[%clk 0:00:27.4]} 36... b5 {[%clk 0:02:18.6]} 37.
Kd3 {[%clk 0:00:22.1]} 37... Nxa3 {[%clk 0:02:17.2]} 38. Ba5 {[%clk 0:00:22.7]}
38... Nc4 {[%clk 0:02:17.4]} 39. Bb4 {[%clk 0:00:23.3]} 39... g5 {[%clk
0:02:12]} 40. h5 {[%clk 0:00:14.6]} 40... Ne5+ {[%clk 0:02:02.6]} 41. Ke3 {[%clk
0:00:04.8]} 41... Nc6 {[%clk 0:02:03.5]} 42. Bf8 {[%clk 0:00:03.6]} 42... Kf7
{[%clk 0:02:03.8]} 43. Bc5 {[%clk 0:00:04.3]} 43... a5 {[%clk 0:02:02.5]} 44.
Ke4 {[%clk 0:00:04.8]} 44... b4 {[%clk 0:01:57.3]} 45. Kd5 {[%clk 0:00:05.4]}
45... Ne5 {[%clk 0:01:47.1]} 46. Bd4 {[%clk 0:00:05.7]} 46... a4 {[%clk
0:01:44.6]} 47. Kc5 {[%clk 0:00:06.2]} 47... b3 {[%clk 0:01:43.6]} 48. Kb4
{[%clk 0:00:03.3]} 48... Nc6+ {[%clk 0:01:43.8]} 0-1

[Event "Early-Titled-Tuesday-Blitz-June-18-2024"]
[Site "Chess.com"]
[Date "2024.06.18"]
[Round "8"]
[White "CSB7"]
[Black "Sanan_Sjugirov"]
[Result "0-1"]
[WhiteElo "2756"]
[BlackElo "2946"]
[TimeControl "180+1"]
[EndTime "9:29:22 PDT"]
[Termination "Sanan_Sjugirov won by resignation"]

1. d4 {[%clk 0:03:00.9]} 1... Nf6 {[%clk 0:02:59.7]} 2. c4 {[%clk 0:03:01]} 2...
e6 {[%clk 0:03:00]} 3. Nc3 {[%clk 0:03:01.1]} 3... Bb4 {[%clk 0:02:59.9]} 4. f3
{[%clk 0:03:00.8]} 4... b5 {[%clk 0:02:57.1]} 5. cxb5 {[%clk 0:02:54.7]} 5...
Nd5 {[%clk 0:02:57.3]} 6. Qd3 {[%clk 0:02:19.1]} 6... a6 {[%clk 0:02:56.6]} 7.
e4 {[%clk 0:02:17.3]} 7... Nxc3 {[%clk 0:02:56.5]} 8. bxc3 {[%clk 0:02:17.2]}
8... Be7 {[%clk 0:02:57.1]} 9. Qc2 {[%clk 0:02:10.4]} 9... O-O {[%clk 0:02:56]}
10. Nh3 {[%clk 0:02:10.3]} 10... axb5 {[%clk 0:02:49]} 11. Bxb5 {[%clk
0:02:11.2]} 11... Ba6 {[%clk 0:02:43.9]} 12. Bxa6 {[%clk 0:02:09.8]} 12... Rxa6
{[%clk 0:02:44.8]} 13. O-O {[%clk 0:02:06.5]} 13... Nc6 {[%clk 0:02:45.4]} 14.
Be3 {[%clk 0:01:52.8]} 14... Qa8 {[%clk 0:02:45.2]} 15. Nf2 {[%clk 0:01:29.9]}
15... Ra3 {[%clk 0:02:44.1]} 16. Rfb1 {[%clk 0:01:28]} 16... Qa6 {[%clk
0:02:39]} 17. Rb3 {[%clk 0:01:19.2]} 17... Ra4 {[%clk 0:02:38.1]} 18. Nd3 {[%clk
0:01:12.4]} 18... Ra8 {[%clk 0:02:33.8]} 19. d5 {[%clk 0:01:01.5]} 19... Na5
{[%clk 0:02:31.5]} 20. Rbb1 {[%clk 0:00:22.9]} 20... Nc4 {[%clk 0:02:31.4]} 21.
Qe2 {[%clk 0:00:23.6]} 21... h6 {[%clk 0:02:25.8]} 22. Bd4 {[%clk 0:00:22.5]}
22... Na3 {[%clk 0:01:44.8]} 23. Rb3 {[%clk 0:00:20.4]} 23... Nb5 {[%clk
0:01:45.4]} 24. Nc5 {[%clk 0:00:11.1]} 24... Nxd4 {[%clk 0:01:15.6]} 25. Qxa6
{[%clk 0:00:10.5]} 25... Bxc5 {[%clk 0:01:16.3]} 26. Qb7 {[%clk 0:00:03.6]}
26... Nxb3+ {[%clk 0:01:15.9]} 27. Kf1 {[%clk 0:00:04.1]} 27... Nxa1 {[%clk
0:01:16.2]} 28. Qxc7 {[%clk 0:00:04.6]} 28... Rxa2 {[%clk 0:00:57.4]} 29. Qxc5
{[%clk 0:00:04]} 29... Nb3 {[%clk 0:00:58.1]} 30. Qb4 {[%clk 0:00:03.7]} 30...
Rb2 {[%clk 0:00:58.3]} 0-1

[Event "Early-Titled-Tuesday-Blitz-June-18-2024"]
[Site "Chess.com"]
[Date "2024.06.18"]
[Round "8"]
[White "pavelalexandru07"]
[Black "Alphafischer2019"]
[Result "0-1"]
[WhiteElo "2467"]
[BlackElo "2638"]
[TimeControl "180+1"]
[EndTime "9:29:22 PDT"]
[Termination "Alphafischer2019 won by resignation"]

1. e4 {[%clk 0:03:00.9]} 1... e6 {[%clk 0:02:59]} 2. d4 {[%clk 0:03:00.8]} 2...
d5 {[%clk 0:02:59]} 3. Nc3 {[%clk 0:03:01.2]} 3... dxe4 {[%clk 0:02:59.2]} 4.
Nxe4 {[%clk 0:03:01.2]} 4... Nd7 {[%clk 0:02:59.9]} 5. Nf3 {[%clk 0:02:54.4]}
5... Ngf6 {[%clk 0:02:59.1]} 6. Nxf6+ {[%clk 0:02:46.6]} 6... Nxf6 {[%clk
0:03:00]} 7. Bd3 {[%clk 0:02:46.6]} 7... c5 {[%clk 0:02:58.5]} 8. c3 {[%clk
0:02:28]} 8... cxd4 {[%clk 0:02:57.8]} 9. Nxd4 {[%clk 0:02:28.3]} 9... Bc5
{[%clk 0:02:57.5]} 10. Nb3 {[%clk 0:02:27.5]} 10... Bd6 {[%clk 0:02:50]} 11. Qe2
{[%clk 0:02:27.3]} 11... O-O {[%clk 0:02:48.2]} 12. Be3 {[%clk 0:02:13.4]} 12...
Qc7 {[%clk 0:02:46.6]} 13. O-O-O {[%clk 0:02:06.4]} 13... b6 {[%clk 0:02:41.5]}
14. g4 {[%clk 0:02:04.8]} 14... Bb7 {[%clk 0:02:33.2]} 15. Rhg1 {[%clk
0:02:03.4]} 15... Nd5 {[%clk 0:02:29.7]} 16. Bd2 {[%clk 0:01:58.5]} 16... Nf4
{[%clk 0:02:09.4]} 17. Bxf4 {[%clk 0:01:57.5]} 17... Bxf4+ {[%clk 0:02:10.3]}
18. Kb1 {[%clk 0:01:56.7]} 18... Bxh2 {[%clk 0:02:03.1]} 19. Rge1 {[%clk
0:01:31.3]} 19... Rfd8 {[%clk 0:01:55]} 20. f3 {[%clk 0:01:30.9]} 20... Bf4
{[%clk 0:01:50.7]} 21. Rh1 {[%clk 0:01:29.6]} 21... g6 {[%clk 0:01:49.1]} 22.
Nd4 {[%clk 0:01:28.2]} 22... e5 {[%clk 0:01:39.8]} 23. Nf5 {[%clk 0:01:08.8]}
23... gxf5 {[%clk 0:01:28.8]} 24. gxf5 {[%clk 0:01:09.3]} 24... f6 {[%clk
0:01:22.6]} 25. Rdg1+ {[%clk 0:01:07.9]} 25... Kh8 {[%clk 0:01:22.1]} 26. Rg6
{[%clk 0:00:44.8]} 26... Qd7 {[%clk 0:00:33.2]} 27. Bc4 {[%clk 0:00:41.7]} 27...
Qxf5+ {[%clk 0:00:26.6]} 28. Qc2 {[%clk 0:00:36.5]} 28... Qxc2+ {[%clk
0:00:21.7]} 29. Kxc2 {[%clk 0:00:37.4]} 29... Bxf3 {[%clk 0:00:21.7]} 0-1

[Event "Early-Titled-Tuesday-Blitz-June-18-2024"]
[Site "Chess.com"]
[Date "2024.06.18"]
[Round "8"]
[White "myburger"]
[Black "mostafa_sakha"]
[Result "0-1"]
[WhiteElo "2523"]
[BlackElo "2403"]
[TimeControl "180+1"]
[EndTime "9:29:23 PDT"]
[Termination "mostafa_sakha won by resignation"]

1. d4 {[%clk 0:03:00.9]} 1... Nf6 {[%clk 0:02:59.8]} 2. Nc3 {[%clk 0:03:00.6]}
2... d5 {[%clk 0:02:59.9]} 3. Bf4 {[%clk 0:03:01]} 3... c5 {[%clk 0:02:59.7]} 4.
e4 {[%clk 0:02:58.8]} 4... cxd4 {[%clk 0:02:59.6]} 5. Qxd4 {[%clk 0:02:56.3]}
5... Nc6 {[%clk 0:02:59.7]} 6. Qa4 {[%clk 0:02:55.5]} 6... d4 {[%clk 0:02:52.5]}
7. Nb5 {[%clk 0:02:52.3]} 7... e5 {[%clk 0:02:50.7]} 8. Bxe5 {[%clk 0:02:49.8]}
8... Bb4+ {[%clk 0:02:43.8]} 9. c3 {[%clk 0:02:34.2]} 9... dxc3 {[%clk
0:02:42.7]} 10. bxc3 {[%clk 0:02:31.7]} 10... O-O {[%clk 0:02:42.4]} 11. Rd1
{[%clk 0:02:16.9]} 11... Nd7 {[%clk 0:02:23]} 12. Bc7 {[%clk 0:02:09.5]} 12...
Qe7 {[%clk 0:02:15.4]} 13. cxb4 {[%clk 0:02:08]} 13... Qxe4+ {[%clk 0:02:14.4]}
14. Be2 {[%clk 0:01:53.4]} 14... Qxg2 {[%clk 0:02:11.9]} 15. Kd2 {[%clk
0:01:31.2]} 15... Nde5 {[%clk 0:01:41.3]} 16. f4 {[%clk 0:01:11]} 16... Nc4+
{[%clk 0:01:30.4]} 17. Kc1 {[%clk 0:01:06.2]} 17... Be6 {[%clk 0:01:27.5]} 18.
f5 {[%clk 0:00:53.2]} 18... Qg5+ {[%clk 0:01:19.4]} 19. Kb1 {[%clk 0:00:48.4]}
19... Bxf5+ {[%clk 0:01:18.2]} 20. Bd3 {[%clk 0:00:43]} 20... Bxd3+ {[%clk
0:01:18]} 21. Rxd3 {[%clk 0:00:43.9]} 21... Qf5 {[%clk 0:01:15.3]} 22. Kc2
{[%clk 0:00:21.7]} 22... N6e5 {[%clk 0:01:04.2]} 23. Bxe5 {[%clk 0:00:18.5]}
23... Nxe5 {[%clk 0:01:05.1]} 24. Qb3 {[%clk 0:00:18.1]} 24... Rad8 {[%clk
0:01:00.1]} 25. Ne2 {[%clk 0:00:15]} 25... Rxd3 {[%clk 0:00:59.2]} 26. Ned4
{[%clk 0:00:15.4]} 26... Qf2+ {[%clk 0:00:56.4]} 27. Kb1 {[%clk 0:00:15]} 27...
Rxb3+ {[%clk 0:00:55.3]} 28. Nxb3 {[%clk 0:00:15.9]} 28... Nd3 {[%clk
0:00:45.6]} 0-1

[Event "Early-Titled-Tuesday-Blitz-June-18-2024"]
[Site "Chess.com"]
[Date "2024.06.18"]
[Round "8"]
[White "RantomOpening"]
[Black "Cheer_Down"]
[Result "0-1"]
[WhiteElo "2609"]
[BlackElo "2456"]
[TimeControl "180+1"]
[EndTime "9:29:27 PDT"]
[Termination "Cheer_Down won by resignation"]

1. c4 {[%clk 0:03:00.9]} 1... e6 {[%clk 0:02:59.8]} 2. Nf3 {[%clk 0:03:00]} 2...
d5 {[%clk 0:03:00]} 3. e3 {[%clk 0:02:59.8]} 3... dxc4 {[%clk 0:02:59.2]} 4.
Bxc4 {[%clk 0:02:59]} 4... Nf6 {[%clk 0:02:57.1]} 5. Nc3 {[%clk 0:02:57.7]} 5...
a6 {[%clk 0:02:57.4]} 6. a4 {[%clk 0:02:56.6]} 6... c5 {[%clk 0:02:55.6]} 7. d4
{[%clk 0:02:55.7]} 7... cxd4 {[%clk 0:02:54.3]} 8. Qxd4 {[%clk 0:02:50.8]} 8...
Qxd4 {[%clk 0:02:53]} 9. Nxd4 {[%clk 0:02:51.7]} 9... Bd7 {[%clk 0:02:53.2]} 10.
O-O {[%clk 0:02:51.1]} 10... Nc6 {[%clk 0:02:53.5]} 11. Nxc6 {[%clk 0:02:50.3]}
11... Bxc6 {[%clk 0:02:53.8]} 12. b3 {[%clk 0:02:49.4]} 12... Be7 {[%clk
0:02:38.7]} 13. Bb2 {[%clk 0:02:49]} 13... O-O-O {[%clk 0:02:35.9]} 14. Rfd1
{[%clk 0:02:44.2]} 14... Rxd1+ {[%clk 0:02:32.6]} 15. Rxd1 {[%clk 0:02:45.1]}
15... Rd8 {[%clk 0:02:31.2]} 16. Rxd8+ {[%clk 0:02:43.6]} 16... Kxd8 {[%clk
0:02:30.2]} 17. Kf1 {[%clk 0:02:37.9]} 17... g6 {[%clk 0:02:28.6]} 18. h3 {[%clk
0:02:36]} 18... Ne4 {[%clk 0:02:26.1]} 19. Nxe4 {[%clk 0:02:23.4]} 19... Bxe4
{[%clk 0:02:26]} 20. f3 {[%clk 0:02:21.2]} 20... Bc6 {[%clk 0:02:19.3]} 21. Ke2
{[%clk 0:02:20.8]} 21... h5 {[%clk 0:02:17.1]} 22. Bd4 {[%clk 0:02:12.9]} 22...
Kd7 {[%clk 0:02:16.7]} 23. e4 {[%clk 0:02:12.3]} 23... b5 {[%clk 0:02:13.1]} 24.
axb5 {[%clk 0:02:11.8]} 24... Bxb5 {[%clk 0:02:13.4]} 25. Kd3 {[%clk 0:02:10.8]}
25... Kc6 {[%clk 0:02:12.9]} 26. Be3 {[%clk 0:02:06]} 26... Bb4 {[%clk
0:02:07.3]} 27. Bf2 {[%clk 0:01:53]} 27... Bc5 {[%clk 0:02:03.1]} 28. Be1 {[%clk
0:01:35.2]} 28... Be7 {[%clk 0:01:59.5]} 29. Bc3 {[%clk 0:01:34.2]} 29... Bd8
{[%clk 0:01:58.3]} 30. Kd4 {[%clk 0:01:31.8]} 30... Bf6+ {[%clk 0:01:53.5]} 31.
Kd3 {[%clk 0:01:32]} 31... Bd8 {[%clk 0:01:51.9]} 32. g4 {[%clk 0:01:29.6]}
32... Be7 {[%clk 0:01:46.2]} 33. gxh5 {[%clk 0:01:28.8]} 33... gxh5 {[%clk
0:01:47.1]} 34. Be5 {[%clk 0:01:25.2]} 34... Bg5 {[%clk 0:01:44.6]} 35. f4
{[%clk 0:01:19.9]} 35... Be7 {[%clk 0:01:42.2]} 36. f5 {[%clk 0:01:20.3]} 36...
exf5 {[%clk 0:01:38.2]} 37. exf5 {[%clk 0:01:19.1]} 37... Bb4 {[%clk 0:01:37.2]}
38. Bc3 {[%clk 0:01:11.1]} 38... Bxc3 {[%clk 0:01:30.8]} 39. Kxc3 {[%clk
0:01:11]} 39... f6 {[%clk 0:01:29.8]} 40. Kd4 {[%clk 0:01:04.9]} 40... Kd6
{[%clk 0:01:26.1]} 41. h4 {[%clk 0:00:50.2]} 41... Bxc4 {[%clk 0:01:22.7]} 42.
Kxc4 {[%clk 0:00:50.7]} 42... Ke5 {[%clk 0:01:17.2]} 43. Kb4 {[%clk 0:00:51]}
43... Kxf5 {[%clk 0:01:17.2]} 44. Ka5 {[%clk 0:00:51.5]} 44... Ke4 {[%clk
0:01:13.1]} 45. Kxa6 {[%clk 0:00:49.7]} 45... f5 {[%clk 0:01:13.5]} 46. b4
{[%clk 0:00:49]} 46... f4 {[%clk 0:01:13.9]} 47. b5 {[%clk 0:00:49.9]} 47... f3
{[%clk 0:01:14.3]} 48. b6 {[%clk 0:00:50.8]} 48... f2 {[%clk 0:01:14.7]} 49. b7
{[%clk 0:00:49.8]} 49... f1=Q+ {[%clk 0:01:15]} 50. Ka7 {[%clk 0:00:50.1]} 50...
Qa1+ {[%clk 0:01:14.1]} 51. Kb8 {[%clk 0:00:50.3]} 51... Kd5 {[%clk 0:01:13.6]}
52. Kc8 {[%clk 0:00:50.5]} 52... Qc3+ {[%clk 0:01:13.2]} 53. Kd8 {[%clk
0:00:50.3]} 53... Qb4 {[%clk 0:01:12.7]} 54. Kc8 {[%clk 0:00:50.8]} 54... Qc5+
{[%clk 0:01:12.6]} 55. Kd8 {[%clk 0:00:48.2]} 55... Qb6+ {[%clk 0:01:12]} 56.
Kc8 {[%clk 0:00:48.8]} 56... Qc6+ {[%clk 0:01:12.4]} 57. Kd8 {[%clk 0:00:49.2]}
57... Qxb7 {[%clk 0:01:11.6]} 0-1

[Event "Early-Titled-Tuesday-Blitz-June-18-2024"]
[Site "Chess.com"]
[Date "2024.06.18"]
[Round "8"]
[White "Yaacovn"]
[Black "DinaBelenkaya"]
[Result "1-0"]
[WhiteElo "2826"]
[BlackElo "2355"]
[TimeControl "180+1"]
[EndTime "9:29:27 PDT"]
[Termination "Yaacovn won by resignation"]

1. d4 {[%clk 0:03:00.9]} 1... d5 {[%clk 0:02:59.3]} 2. Nf3 {[%clk 0:03:00]} 2...
Nf6 {[%clk 0:02:58.6]} 3. c3 {[%clk 0:02:53.8]} 3... c5 {[%clk 0:02:51.5]} 4.
Bf4 {[%clk 0:02:53.3]} 4... Nc6 {[%clk 0:02:50.2]} 5. e3 {[%clk 0:02:52.5]} 5...
Qb6 {[%clk 0:02:49.7]} 6. Qc2 {[%clk 0:02:51.6]} 6... Bf5 {[%clk 0:02:48.4]} 7.
dxc5 {[%clk 0:02:49.3]} 7... Bxc2 {[%clk 0:02:46.1]} 8. cxb6 {[%clk 0:02:48.9]}
8... axb6 {[%clk 0:02:46.4]} 9. Na3 {[%clk 0:02:48.2]} 9... Be4 {[%clk
0:02:41.2]} 10. Nb5 {[%clk 0:02:45.8]} 10... Kd7 {[%clk 0:02:37.4]} 11. Ne5+
{[%clk 0:02:42.6]} 11... Nxe5 {[%clk 0:02:37.1]} 12. Bxe5 {[%clk 0:02:43.3]}
12... Ne8 {[%clk 0:02:36.2]} 13. f3 {[%clk 0:02:41.2]} 13... Bg6 {[%clk
0:02:35.7]} 14. a3 {[%clk 0:02:35.5]} 14... f6 {[%clk 0:02:35.7]} 15. Bg3 {[%clk
0:02:34.3]} 15... e5 {[%clk 0:02:36]} 16. O-O-O {[%clk 0:02:34.2]} 16... Kc6
{[%clk 0:02:23.8]} 17. c4 {[%clk 0:02:26.7]} 17... dxc4 {[%clk 0:02:23.8]} 18.
Bxc4 {[%clk 0:02:22.8]} 18... Nc7 {[%clk 0:02:24]} 19. Nxc7 {[%clk 0:01:51.7]}
19... Kxc7 {[%clk 0:02:24]} 20. Bb5 {[%clk 0:01:51.4]} 20... Bd6 {[%clk
0:02:19.4]} 21. e4 {[%clk 0:01:47.2]} 21... Rhd8 {[%clk 0:02:17.5]} 22. Kb1
{[%clk 0:01:41.9]} 22... Rac8 {[%clk 0:02:14.3]} 23. b4 {[%clk 0:01:33.1]} 23...
Bf7 {[%clk 0:02:11.8]} 24. Kb2 {[%clk 0:01:31.2]} 24... Kb8 {[%clk 0:02:12]} 25.
Bf2 {[%clk 0:01:29.5]} 25... Bc7 {[%clk 0:02:03.6]} 26. Bd7 {[%clk 0:01:16.2]}
26... b5 {[%clk 0:01:34.2]} 27. Bc5 {[%clk 0:00:54.1]} 27... Bc4 {[%clk
0:01:24.9]} 28. Bxc8 {[%clk 0:00:43.9]} 28... Kxc8 {[%clk 0:01:23.8]} 29. Rxd8+
{[%clk 0:00:41.7]} 29... Bxd8 {[%clk 0:01:18.8]} 30. Rd1 {[%clk 0:00:42.6]}
30... Bc7 {[%clk 0:01:17.3]} 31. Kc3 {[%clk 0:00:41.9]} 31... b6 {[%clk
0:01:16.5]} 32. Bd6 {[%clk 0:00:41.1]} 32... Bd8 {[%clk 0:01:15.4]} 33. Bf8
{[%clk 0:00:40.7]} 33... g6 {[%clk 0:01:13.8]} 34. h4 {[%clk 0:00:35.4]} 34...
f5 {[%clk 0:01:13.4]} 35. Bg7 {[%clk 0:00:34.1]} 35... Bc7 {[%clk 0:01:08.6]}
36. Bf6 {[%clk 0:00:33.3]} 36... Be6 {[%clk 0:01:04.9]} 37. exf5 {[%clk
0:00:29.1]} 37... gxf5 {[%clk 0:01:01.6]} 38. Re1 {[%clk 0:00:28.7]} 38... e4
{[%clk 0:00:57.8]} 39. fxe4 {[%clk 0:00:27.3]} 39... fxe4 {[%clk 0:00:58.2]} 40.
Rxe4 {[%clk 0:00:27.1]} 40... Bd5 {[%clk 0:00:58.2]} 41. Re8+ {[%clk 0:00:24.6]}
41... Kb7 {[%clk 0:00:57]} 42. Re7 {[%clk 0:00:25.5]} 42... h5 {[%clk
0:00:55.9]} 43. Be5 {[%clk 0:00:25.4]} 1-0